[Event "*** Titled Tuesday Blitz"]
[Site "Chess.com"]
[Date "2020.05.05"]
[Round "4"]
[White "ChessBitl"]
[Black "Hanging_pointer"]
[Result "1/2-1/2"]
[WhiteElo "2307"]
[BlackElo "2578"]
[TimeControl "180+1"]
[EndTime "10:42:10 PDT"]
[Termination "Game drawn by stalemate"]

1. e4 {[%clk 0:02:59.9]} 1... c6 {[%clk 0:02:58.4]} 2. Nf3 {[%clk 0:02:58.5]}
2... d5 {[%clk 0:02:59.3]} 3. Nc3 {[%clk 0:02:58.8]} 3... Bg4 {[%clk 0:02:58.7]}
4. h3 {[%clk 0:02:57.7]} 4... Bxf3 {[%clk 0:02:59.1]} 5. Qxf3 {[%clk 0:02:58.2]}
5... dxe4 {[%clk 0:02:59.9]} 6. Nxe4 {[%clk 0:02:57.1]} 6... Nd7 {[%clk
0:02:59.2]} 7. d4 {[%clk 0:02:54.9]} 7... Ngf6 {[%clk 0:02:58.7]} 8. c3 {[%clk
0:02:54.6]} 8... Nxe4 {[%clk 0:02:56.6]} 9. Qxe4 {[%clk 0:02:54.9]} 9... Nf6
{[%clk 0:02:57.5]} 10. Qh4 {[%clk 0:02:52.8]} 10... e6 {[%clk 0:02:57.1]} 11.
Bd3 {[%clk 0:02:52.9]} 11... Be7 {[%clk 0:02:56.7]} 12. O-O {[%clk 0:02:53]}
12... O-O {[%clk 0:02:56.3]} 13. Qg3 {[%clk 0:02:46.4]} 13... Nd5 {[%clk
0:02:52.9]} 14. Bd2 {[%clk 0:02:43.4]} 14... Bh4 {[%clk 0:02:48.9]} 15. Qg4
{[%clk 0:02:39.5]} 15... g6 {[%clk 0:02:48]} 16. Bh6 {[%clk 0:02:30.3]} 16...
Re8 {[%clk 0:02:45.6]} 17. Qe2 {[%clk 0:02:28.5]} 17... Bf6 {[%clk 0:02:43.2]}
18. a4 {[%clk 0:02:22.5]} 18... Bg5 {[%clk 0:02:40.8]} 19. Bxg5 {[%clk
0:02:15.6]} 19... Qxg5 {[%clk 0:02:41.7]} 20. Qf3 {[%clk 0:02:11.3]} 20... e5
{[%clk 0:02:38.5]} 21. dxe5 {[%clk 0:02:08.6]} 21... Qxe5 {[%clk 0:02:35.7]} 22.
Rfe1 {[%clk 0:02:07.6]} 22... Qxe1+ {[%clk 0:02:34.7]} 23. Rxe1 {[%clk 0:02:07]}
23... Rxe1+ {[%clk 0:02:35.6]} 24. Kh2 {[%clk 0:02:07.5]} 24... Rae8 {[%clk
0:02:35.7]} 25. a5 {[%clk 0:02:05.6]} 25... a6 {[%clk 0:02:24]} 26. h4 {[%clk
0:02:03.6]} 26... R1e5 {[%clk 0:02:19.4]} 27. g4 {[%clk 0:01:54.5]} 27... h5
{[%clk 0:02:16.3]} 28. g5 {[%clk 0:01:48.7]} 28... Ne7 {[%clk 0:02:07.8]} 29.
Kg2 {[%clk 0:01:44.1]} 29... Nf5 {[%clk 0:02:07.1]} 30. Bxf5 {[%clk 0:01:38.2]}
30... Rxf5 {[%clk 0:02:08]} 31. Qd3 {[%clk 0:01:32.9]} 31... Rd5 {[%clk
0:02:01.8]} 32. Qc4 {[%clk 0:01:07.8]} 32... Rxa5 {[%clk 0:01:59.6]} 33. Kg3
{[%clk 0:01:05.4]} 33... Rae5 {[%clk 0:01:56.4]} 34. Qd4 {[%clk 0:00:57.5]}
34... a5 {[%clk 0:01:37.4]} 35. c4 {[%clk 0:00:51.4]} 35... Re4 {[%clk
0:01:35.2]} 36. Qd7 {[%clk 0:00:47.3]} 36... Rg4+ {[%clk 0:01:34.4]} 37. Kh3
{[%clk 0:00:43.1]} 37... Ree4 {[%clk 0:01:32.7]} 38. f3 {[%clk 0:00:40.8]} 38...
Rxh4+ {[%clk 0:01:32.7]} 39. Kg3 {[%clk 0:00:40.8]} 39... Rxc4 {[%clk
0:01:32.6]} 40. Qxb7 {[%clk 0:00:39]} 40... Rhf4 {[%clk 0:01:28.2]} 41. Qa8+
{[%clk 0:00:36.6]} 41... Kg7 {[%clk 0:01:26.4]} 42. Qxa5 {[%clk 0:00:37.2]}
42... Rf5 {[%clk 0:01:21]} 43. Qa6 {[%clk 0:00:35.2]} 43... Rxg5+ {[%clk
0:01:20.4]} 44. Kh3 {[%clk 0:00:33.4]} 44... Rcc5 {[%clk 0:01:13.7]} 45. Qb6
{[%clk 0:00:29.1]} 45... Rgf5 {[%clk 0:01:13.5]} 46. Kg3 {[%clk 0:00:28.3]}
46... Kh7 {[%clk 0:01:11.6]} 47. Qb3 {[%clk 0:00:26.1]} 47... Rb5 {[%clk
0:01:10.8]} 48. Qc3 {[%clk 0:00:23.7]} 48... c5 {[%clk 0:01:06.5]} 49. b3 {[%clk
0:00:23]} 49... Rb6 {[%clk 0:01:06.3]} 50. Kg2 {[%clk 0:00:16.8]} 50... Rbf6
{[%clk 0:01:06.6]} 51. Qc4 {[%clk 0:00:12]} 51... Rxf3 {[%clk 0:01:04.8]} 52.
Qxc5 {[%clk 0:00:11.9]} 52... Rxb3 {[%clk 0:01:01.5]} 53. Qd4 {[%clk 0:00:11.6]}
53... Rbf3 {[%clk 0:01:01.3]} 54. Kg1 {[%clk 0:00:10.9]} 54... Rf1+ {[%clk
0:01:00.5]} 55. Kg2 {[%clk 0:00:11.1]} 55... R6f2+ {[%clk 0:01:01.3]} 56. Kg3
{[%clk 0:00:10.8]} 56... Rf3+ {[%clk 0:00:59.7]} 57. Kg2 {[%clk 0:00:10.7]}
57... Rf4 {[%clk 0:01:00.6]} 58. Qd5 {[%clk 0:00:09.8]} 58... h4 {[%clk
0:01:00.1]} 59. Kh2 {[%clk 0:00:06.3]} 59... R1f2+ {[%clk 0:00:59.6]} 60. Kh3
{[%clk 0:00:05.7]} 60... R2f3+ {[%clk 0:00:59.7]} 61. Kg2 {[%clk 0:00:05.4]}
61... Kg7 {[%clk 0:00:58.2]} 62. Qe5+ {[%clk 0:00:04.5]} 62... Kh7 {[%clk
0:00:58.6]} 63. Qd5 {[%clk 0:00:04.9]} 63... h3+ {[%clk 0:00:58.5]} 64. Kh2
{[%clk 0:00:04.9]} 64... Kh6 {[%clk 0:00:38.3]} 65. Kh1 {[%clk 0:00:05]} 65...
Rf2 {[%clk 0:00:35.7]} 66. Kg1 {[%clk 0:00:05.1]} 66... Rg2+ {[%clk 0:00:29.7]}
67. Kh1 {[%clk 0:00:04.2]} 67... Rff2 {[%clk 0:00:27.9]} 68. Qh5+ {[%clk
0:00:02.4]} 68... Kg7 {[%clk 0:00:25.2]} 69. Qxg6+ {[%clk 0:00:02.5]} 69... Kf8
{[%clk 0:00:14.7]} 70. Qxf7+ {[%clk 0:00:02.6]} 70... Kxf7 {[%clk 0:00:11.5]}
1/2-1/2

[Event "*** Titled Tuesday Blitz"]
[Site "Chess.com"]
[Date "2020.05.05"]
[Round "4"]
[White "PlayChessSimple"]
[Black "JonahWillow"]
[Result "0-1"]
[WhiteElo "2481"]
[BlackElo "2700"]
[TimeControl "180+1"]
[EndTime "10:42:14 PDT"]
[Termination "JonahWillow won on time"]

1. e4 {[%clk 0:03:00.9]} 1... c5 {[%clk 0:02:59.9]} 2. Nf3 {[%clk 0:03:00.7]}
2... Nc6 {[%clk 0:03:00.5]} 3. c3 {[%clk 0:03:00.7]} 3... Nf6 {[%clk 0:03:00.7]}
4. e5 {[%clk 0:03:00.9]} 4... Nd5 {[%clk 0:03:01.4]} 5. Bc4 {[%clk 0:03:01.5]}
5... Nb6 {[%clk 0:03:01.6]} 6. Bb3 {[%clk 0:03:01.5]} 6... g6 {[%clk 0:03:02.1]}
7. d4 {[%clk 0:02:59.6]} 7... cxd4 {[%clk 0:03:03]} 8. cxd4 {[%clk 0:02:59.5]}
8... Bg7 {[%clk 0:03:03.2]} 9. O-O {[%clk 0:02:58.3]} 9... O-O {[%clk
0:03:02.8]} 10. Nc3 {[%clk 0:02:57.8]} 10... d6 {[%clk 0:03:03.2]} 11. exd6
{[%clk 0:02:43.2]} 11... Qxd6 {[%clk 0:02:48.3]} 12. d5 {[%clk 0:02:35.5]} 12...
Na5 {[%clk 0:02:44.6]} 13. Bg5 {[%clk 0:02:08.9]} 13... Bg4 {[%clk 0:02:40.2]}
14. Re1 {[%clk 0:02:05]} 14... Nxb3 {[%clk 0:02:30.5]} 15. Bxe7 {[%clk
0:01:56.7]} 15... Bxf3 {[%clk 0:02:04.4]} 16. Qxf3 {[%clk 0:01:31.5]} 16... Nd4
{[%clk 0:02:00.7]} 17. Bxd6 {[%clk 0:01:26.6]} 17... Nxf3+ {[%clk 0:02:00.7]}
18. gxf3 {[%clk 0:01:27.4]} 18... Rfd8 {[%clk 0:02:01.2]} 19. Bc7 {[%clk
0:01:16.6]} 19... Bxc3 {[%clk 0:01:54.8]} 20. Bxd8 {[%clk 0:01:05.7]} 20... Bxe1
{[%clk 0:01:53.8]} 21. Bxb6 {[%clk 0:01:06.3]} 21... axb6 {[%clk 0:01:38.4]} 22.
Rxe1 {[%clk 0:01:05.4]} 22... Rxa2 {[%clk 0:01:36.9]} 23. d6 {[%clk 0:01:01.4]}
23... Ra8 {[%clk 0:01:27.2]} 24. d7 {[%clk 0:01:00.8]} 24... Kf8 {[%clk
0:01:27.4]} 25. Rc1 {[%clk 0:00:56]} 25... Ke7 {[%clk 0:01:25.1]} 26. Rc7 {[%clk
0:00:48.1]} 26... Ra2 {[%clk 0:01:21]} 27. d8=Q+ {[%clk 0:00:27.2]} 27... Kxd8
{[%clk 0:01:20.9]} 28. Rxf7 {[%clk 0:00:27.7]} 28... Rxb2 {[%clk 0:01:19.9]} 29.
Rxh7 {[%clk 0:00:26.2]} 29... Kc8 {[%clk 0:01:16.5]} 30. Rg7 {[%clk 0:00:25.7]}
30... b5 {[%clk 0:01:15.1]} 31. Rxg6 {[%clk 0:00:25.6]} 31... b4 {[%clk
0:01:16]} 32. h4 {[%clk 0:00:23.7]} 32... b3 {[%clk 0:01:15]} 33. Rb6 {[%clk
0:00:21.9]} 33... Kc7 {[%clk 0:01:15.2]} 34. Rb4 {[%clk 0:00:20.1]} 34... Kc6
{[%clk 0:00:29]} 35. h5 {[%clk 0:00:20.2]} 35... b5 {[%clk 0:00:27.3]} 36. h6
{[%clk 0:00:20.3]} 36... Re2 {[%clk 0:00:23.4]} 37. Rxb3 {[%clk 0:00:16]} 37...
Re6 {[%clk 0:00:22.4]} 38. Kf1 {[%clk 0:00:10.7]} 38... Rxh6 {[%clk 0:00:21.8]}
39. Ke2 {[%clk 0:00:10.4]} 39... Kc5 {[%clk 0:00:21.7]} 40. Re3 {[%clk 0:00:08]}
40... Kc4 {[%clk 0:00:19.8]} 41. f4 {[%clk 0:00:06.4]} 41... b4 {[%clk
0:00:19.3]} 42. f5 {[%clk 0:00:06.6]} 42... b3 {[%clk 0:00:19.5]} 43. Re6 {[%clk
0:00:04.2]} 43... b2 {[%clk 0:00:08.9]} 44. Rxh6 {[%clk 0:00:02.8]} 44... b1=Q
{[%clk 0:00:09.5]} 45. Rh3 {[%clk 0:00:01.8]} 45... Qxf5 {[%clk 0:00:08.5]} 46.
Re3 {[%clk 0:00:01.8]} 46... Kd4 {[%clk 0:00:08.3]} 47. Ke1 {[%clk 0:00:02]}
47... Qb1+ {[%clk 0:00:08.1]} 48. Ke2 {[%clk 0:00:02]} 48... Qc1 {[%clk
0:00:07.9]} 49. Kf3 {[%clk 0:00:02.2]} 49... Qd1+ {[%clk 0:00:07.1]} 50. Kg3
{[%clk 0:00:02.1]} 50... Qg1+ {[%clk 0:00:07]} 51. Kf3 {[%clk 0:00:02]} 51...
Qf1 {[%clk 0:00:07.1]} 52. Kg3 {[%clk 0:00:02.1]} 52... Kc4 {[%clk 0:00:05]} 53.
Kf3 {[%clk 0:00:02]} 53... Kd5 {[%clk 0:00:05.6]} 54. Kg3 {[%clk 0:00:02.2]}
54... Qg1+ {[%clk 0:00:06.1]} 55. Kf3 {[%clk 0:00:02.3]} 55... Kd4 {[%clk
0:00:07]} 56. Ke2 {[%clk 0:00:01.5]} 56... Qg2 {[%clk 0:00:07.4]} 57. Ke1 {[%clk
0:00:01.7]} 57... Qh1+ {[%clk 0:00:05.8]} 58. Ke2 {[%clk 0:00:02]} 58... Qh5+
{[%clk 0:00:06.7]} 59. Ke1 {[%clk 0:00:02.2]} 59... Qg4 {[%clk 0:00:07.2]} 60.
Kf1 {[%clk 0:00:02.2]} 60... Kd5 {[%clk 0:00:06.2]} 61. Ke1 {[%clk 0:00:02.4]}
61... Qg2 {[%clk 0:00:05.4]} 62. Ke2 {[%clk 0:00:02.5]} 62... Kd4 {[%clk
0:00:05.9]} 63. Ke1 {[%clk 0:00:02.6]} 63... Qg1+ {[%clk 0:00:06.2]} 64. Ke2
{[%clk 0:00:02.9]} 64... Qc1 {[%clk 0:00:07.1]} 65. Kf3 {[%clk 0:00:03]} 65...
Qf1 {[%clk 0:00:07.2]} 66. Kg3 {[%clk 0:00:03]} 66... Kd5 {[%clk 0:00:07.4]} 67.
Kf3 {[%clk 0:00:02.9]} 67... Kc4 {[%clk 0:00:08]} 68. Kg3 {[%clk 0:00:03.1]}
68... Qh1 {[%clk 0:00:08.6]} 69. Kf4 {[%clk 0:00:02]} 69... Kd4 {[%clk
0:00:08.9]} 70. Kg3 {[%clk 0:00:01.8]} 70... Kd5 {[%clk 0:00:08]} 71. Kf4 {[%clk
0:00:01.9]} 71... Qg2 {[%clk 0:00:08.6]} 0-1

[Event "*** Titled Tuesday Blitz"]
[Site "Chess.com"]
[Date "2020.05.05"]
[Round "4"]
[White "algatar2020"]
[Black "Kingsman132"]
[Result "0-1"]
[WhiteElo "1842"]
[BlackElo "2368"]
[TimeControl "180+1"]
[EndTime "10:42:18 PDT"]
[Termination "Kingsman132 won by checkmate"]

1. d4 {[%clk 0:03:00.3]} 1... g6 {[%clk 0:02:55.7]} 2. Nf3 {[%clk 0:03:00.1]}
2... d6 {[%clk 0:02:54.5]} 3. Bf4 {[%clk 0:03:00.5]} 3... Bg7 {[%clk 0:02:51.1]}
4. e3 {[%clk 0:02:59.6]} 4... Nd7 {[%clk 0:02:49.4]} 5. c4 {[%clk 0:02:59.1]}
5... e5 {[%clk 0:02:44.2]} 6. Bg3 {[%clk 0:02:57]} 6... Ne7 {[%clk 0:02:41.4]}
7. Be2 {[%clk 0:02:55.2]} 7... O-O {[%clk 0:02:38.9]} 8. O-O {[%clk 0:02:53.6]}
8... Nf5 {[%clk 0:02:23.9]} 9. Nc3 {[%clk 0:02:48.7]} 9... Nxg3 {[%clk 0:02:18]}
10. hxg3 {[%clk 0:02:46.9]} 10... Qe7 {[%clk 0:02:18.1]} 11. Re1 {[%clk
0:02:44.7]} 11... f5 {[%clk 0:02:16.5]} 12. Bf1 {[%clk 0:02:42.1]} 12... e4
{[%clk 0:02:13]} 13. Nd2 {[%clk 0:02:37.6]} 13... c6 {[%clk 0:02:09]} 14. b4
{[%clk 0:02:37.4]} 14... Nf6 {[%clk 0:02:03]} 15. a4 {[%clk 0:02:35.9]} 15... d5
{[%clk 0:01:58.1]} 16. Qb3 {[%clk 0:02:32.1]} 16... Be6 {[%clk 0:01:55.6]} 17.
cxd5 {[%clk 0:02:29.2]} 17... cxd5 {[%clk 0:01:52.2]} 18. Rec1 {[%clk
0:02:23.2]} 18... Rac8 {[%clk 0:01:47.2]} 19. Be2 {[%clk 0:02:22]} 19... Rfd8
{[%clk 0:01:43.6]} 20. Nb5 {[%clk 0:02:21.6]} 20... a6 {[%clk 0:01:41.6]} 21.
Nc3 {[%clk 0:02:21.4]} 21... Rc7 {[%clk 0:01:38.7]} 22. b5 {[%clk 0:02:21]}
22... axb5 {[%clk 0:01:32.8]} 23. Nxb5 {[%clk 0:02:19.4]} 23... Rcc8 {[%clk
0:01:31.2]} 24. a5 {[%clk 0:02:10.5]} 24... Bf8 {[%clk 0:01:27.4]} 25. Na7
{[%clk 0:02:06.8]} 25... Rxc1+ {[%clk 0:01:24.8]} 26. Rxc1 {[%clk 0:02:05.7]}
26... Qb4 {[%clk 0:01:24.6]} 27. Qxb4 {[%clk 0:01:50.6]} 27... Bxb4 {[%clk
0:01:25.5]} 28. Nb3 {[%clk 0:01:50.4]} 28... Ra8 {[%clk 0:01:20.9]} 29. Nb5
{[%clk 0:01:47.6]} 29... Bd7 {[%clk 0:01:16.8]} 30. Nc7 {[%clk 0:01:39.6]} 30...
Rc8 {[%clk 0:01:15.2]} 31. a6 {[%clk 0:01:34]} 31... bxa6 {[%clk 0:01:13.7]} 32.
Bxa6 {[%clk 0:01:32.4]} 32... Rb8 {[%clk 0:01:12]} 33. Nc5 {[%clk 0:01:25]}
33... Be8 {[%clk 0:01:09.2]} 34. Be2 {[%clk 0:01:17.1]} 34... Bxc5 {[%clk
0:01:06.1]} 35. dxc5 {[%clk 0:01:15.5]} 35... Kf7 {[%clk 0:01:04.3]} 36. Na6
{[%clk 0:01:11.7]} 36... Rb2 {[%clk 0:00:59.1]} 37. Kf1 {[%clk 0:01:07.4]} 37...
Bc6 {[%clk 0:00:57.4]} 38. Nc7 {[%clk 0:00:59.3]} 38... Ke7 {[%clk 0:00:52.7]}
39. Ra1 {[%clk 0:00:56.6]} 39... Kd7 {[%clk 0:00:51.1]} 40. Na6 {[%clk
0:00:55.7]} 40... Kc8 {[%clk 0:00:46.9]} 41. Ke1 {[%clk 0:00:43.7]} 41... Kb7
{[%clk 0:00:46]} 42. Ra3 {[%clk 0:00:27.3]} 42... Nd7 {[%clk 0:00:42.6]} 43. Rc3
{[%clk 0:00:23.3]} 43... Ne5 {[%clk 0:00:37.5]} 44. Ra3 {[%clk 0:00:22.1]} 44...
Nd3+ {[%clk 0:00:34.8]} 45. Bxd3 {[%clk 0:00:20.9]} 45... exd3 {[%clk
0:00:33.7]} 46. f3 {[%clk 0:00:19.7]} 46... Bb5 {[%clk 0:00:30.4]} 47. c6+
{[%clk 0:00:18.1]} 47... Kxc6 {[%clk 0:00:28.9]} 48. Nb8+ {[%clk 0:00:16.8]}
48... Kb7 {[%clk 0:00:26.2]} 49. Nd7 {[%clk 0:00:12.8]} 49... d2+ {[%clk
0:00:23.7]} 50. Kd1 {[%clk 0:00:12.3]} 50... Bxd7 {[%clk 0:00:21.8]} 51. e4
{[%clk 0:00:10.8]} 51... fxe4 {[%clk 0:00:19.3]} 52. fxe4 {[%clk 0:00:10.8]}
52... dxe4 {[%clk 0:00:19.6]} 53. Rf3 {[%clk 0:00:09.6]} 53... exf3 {[%clk
0:00:15.2]} 54. gxf3 {[%clk 0:00:09.4]} 54... Ba4+ {[%clk 0:00:14.4]} 55. Ke2
{[%clk 0:00:10.3]} 55... d1=Q+ {[%clk 0:00:13.6]} 56. Ke3 {[%clk 0:00:10.4]}
56... Qb3+ {[%clk 0:00:13.8]} 57. Kf4 {[%clk 0:00:11.3]} 57... Qc4+ {[%clk
0:00:13]} 58. Kg5 {[%clk 0:00:12]} 58... Rb5+ {[%clk 0:00:12.4]} 59. Kh6 {[%clk
0:00:12.7]} 59... Rh5+ {[%clk 0:00:12.2]} 60. Kg7 {[%clk 0:00:12.3]} 60... Qc7+
{[%clk 0:00:11.3]} 61. Kf6 {[%clk 0:00:12.4]} 61... Qd6+ {[%clk 0:00:11.2]} 62.
Kg7 {[%clk 0:00:11.9]} 62... Qe7+ {[%clk 0:00:11.1]} 63. Kg8 {[%clk 0:00:12]}
63... Bb3+ {[%clk 0:00:10.3]} 64. Kh8 {[%clk 0:00:12]} 64... Qf8# {[%clk
0:00:10.4]} 0-1

[Event "*** Titled Tuesday Blitz"]
[Site "Chess.com"]
[Date "2020.05.05"]
[Round "4"]
[White "dianosky"]
[Black "DrVelja"]
[Result "0-1"]
[WhiteElo "2434"]
[BlackElo "2642"]
[TimeControl "180+1"]
[EndTime "10:42:21 PDT"]
[Termination "DrVelja won by resignation"]

1. d4 {[%clk 0:03:00.9]} 1... Nf6 {[%clk 0:03:00.1]} 2. c4 {[%clk 0:03:00.9]}
2... g6 {[%clk 0:03:00.2]} 3. Nc3 {[%clk 0:03:01]} 3... Bg7 {[%clk 0:03:01]} 4.
e4 {[%clk 0:03:01.4]} 4... d6 {[%clk 0:03:01.5]} 5. f4 {[%clk 0:03:01.2]} 5...
O-O {[%clk 0:02:59.5]} 6. Be2 {[%clk 0:03:01.5]} 6... c5 {[%clk 0:02:58.8]} 7.
d5 {[%clk 0:03:01.7]} 7... e6 {[%clk 0:02:59.2]} 8. Nf3 {[%clk 0:03:01.8]} 8...
exd5 {[%clk 0:02:55.9]} 9. cxd5 {[%clk 0:03:02]} 9... Bg4 {[%clk 0:02:45.6]} 10.
O-O {[%clk 0:02:55.9]} 10... Bxf3 {[%clk 0:02:44.2]} 11. Bxf3 {[%clk 0:02:56.2]}
11... Nbd7 {[%clk 0:02:41]} 12. Re1 {[%clk 0:02:55.8]} 12... Re8 {[%clk
0:02:39.1]} 13. a4 {[%clk 0:02:53.6]} 13... c4 {[%clk 0:02:14.6]} 14. Be3 {[%clk
0:02:50.7]} 14... Rc8 {[%clk 0:02:14.8]} 15. Bxa7 {[%clk 0:02:23.8]} 15... b6
{[%clk 0:02:08.2]} 16. a5 {[%clk 0:02:23.2]} 16... bxa5 {[%clk 0:02:00.2]} 17.
Nb5 {[%clk 0:01:56.3]} 17... Nc5 {[%clk 0:01:45.1]} 18. e5 {[%clk 0:01:51.4]}
18... Nd3 {[%clk 0:01:32.2]} 19. Nxd6 {[%clk 0:01:43.6]} 19... Ra8 {[%clk
0:00:43.4]} 20. Bd4 {[%clk 0:01:34.1]} 20... Nxe1 {[%clk 0:00:41.8]} 21. Nxe8
{[%clk 0:01:20.8]} 21... Nxf3+ {[%clk 0:00:40.2]} 22. Qxf3 {[%clk 0:01:20.7]}
22... Nxe8 {[%clk 0:00:40.6]} 23. Bc3 {[%clk 0:00:34.5]} 23... Nc7 {[%clk
0:00:34.9]} 24. d6 {[%clk 0:00:34]} 24... Ne6 {[%clk 0:00:33]} 25. g3 {[%clk
0:00:30.1]} 25... a4 {[%clk 0:00:28.4]} 26. Qd5 {[%clk 0:00:29.4]} 26... Qc8
{[%clk 0:00:24]} 27. d7 {[%clk 0:00:18.6]} 27... Qc5+ {[%clk 0:00:20.7]} 28.
Qxc5 {[%clk 0:00:19]} 28... Nxc5 {[%clk 0:00:21.6]} 29. Rd1 {[%clk 0:00:15.6]}
29... Rd8 {[%clk 0:00:17.8]} 30. Rd4 {[%clk 0:00:15.3]} 30... Rxd7 {[%clk
0:00:15.4]} 31. Rxc4 {[%clk 0:00:15.6]} 31... Bf8 {[%clk 0:00:11.7]} 32. Bb4
{[%clk 0:00:10.1]} 32... Nd3 {[%clk 0:00:07.7]} 33. Bxf8 {[%clk 0:00:10.3]}
33... Kxf8 {[%clk 0:00:08]} 34. Rxa4 {[%clk 0:00:09.8]} 34... Nxb2 {[%clk
0:00:08.4]} 35. Ra8+ {[%clk 0:00:10]} 35... Kg7 {[%clk 0:00:08.7]} 36. Rb8
{[%clk 0:00:10.5]} 36... Nd3 {[%clk 0:00:09.1]} 37. Kg2 {[%clk 0:00:10.9]} 37...
Nc5 {[%clk 0:00:09.3]} 38. h4 {[%clk 0:00:10.4]} 38... h5 {[%clk 0:00:07.9]} 39.
Rb4 {[%clk 0:00:09.2]} 39... Ne6 {[%clk 0:00:08]} 40. Kf3 {[%clk 0:00:09.4]}
40... Rd3+ {[%clk 0:00:08.2]} 41. Kf2 {[%clk 0:00:10]} 41... Nd4 {[%clk
0:00:08.3]} 42. Rb2 {[%clk 0:00:08.1]} 42... Nf5 {[%clk 0:00:07.9]} 43. Rb7
{[%clk 0:00:05.3]} 43... Rd2+ {[%clk 0:00:07.5]} 44. Ke1 {[%clk 0:00:05.3]}
44... Rd3 {[%clk 0:00:06.5]} 45. Kf2 {[%clk 0:00:05.1]} 45... Kf8 {[%clk
0:00:06]} 46. Rb8+ {[%clk 0:00:04.7]} 46... Ke7 {[%clk 0:00:06.6]} 47. Rb7+
{[%clk 0:00:05.1]} 47... Rd7 {[%clk 0:00:07.1]} 48. Rb6 {[%clk 0:00:04.2]} 48...
Rd2+ {[%clk 0:00:06.9]} 49. Kf3 {[%clk 0:00:03.9]} 49... Rd3+ {[%clk 0:00:07.4]}
50. Kf2 {[%clk 0:00:04]} 50... Rxg3 {[%clk 0:00:08.3]} 51. Rb7+ {[%clk 0:00:04]}
51... Kf8 {[%clk 0:00:08.8]} 52. Rb8+ {[%clk 0:00:02.5]} 52... Kg7 {[%clk
0:00:09.1]} 53. Rb7 {[%clk 0:00:03.2]} 53... Re3 {[%clk 0:00:09.6]} 54. Rb6
{[%clk 0:00:02]} 54... Re4 {[%clk 0:00:09.2]} 55. Kf3 {[%clk 0:00:02.2]} 55...
Ra4 {[%clk 0:00:09.3]} 56. Rf6 {[%clk 0:00:02.3]} 56... Nd4+ {[%clk 0:00:09.4]}
57. Ke3 {[%clk 0:00:01.4]} 57... Ne6 {[%clk 0:00:10]} 58. f5 {[%clk 0:00:02.1]}
58... gxf5 {[%clk 0:00:10.1]} 59. Rxf5 {[%clk 0:00:02.5]} 59... Kg6 {[%clk
0:00:10.2]} 60. Rf6+ {[%clk 0:00:02.1]} 60... Kg7 {[%clk 0:00:10.7]} 61. Rf5
{[%clk 0:00:02.6]} 61... Rxh4 {[%clk 0:00:11.2]} 62. Kf3 {[%clk 0:00:03.2]}
62... Rh3+ {[%clk 0:00:11.6]} 63. Kg2 {[%clk 0:00:03.7]} 63... Rh4 {[%clk
0:00:11.7]} 64. Kg3 {[%clk 0:00:04.3]} 64... Rg4+ {[%clk 0:00:12.2]} 65. Kh3
{[%clk 0:00:04.8]} 65... Rg5 {[%clk 0:00:13.1]} 66. Rf3 {[%clk 0:00:04.4]} 66...
Rxe5 {[%clk 0:00:13.3]} 67. Kh4 {[%clk 0:00:05.1]} 67... Kg6 {[%clk 0:00:13.2]}
68. Rg3+ {[%clk 0:00:05.4]} 68... Ng5 {[%clk 0:00:13.6]} 69. Ra3 {[%clk
0:00:05.2]} 69... Re4+ {[%clk 0:00:13.6]} 0-1